{"text_format":"1","workbook":"xlsx","n_sheets":4,"sheets":["Bilanz","Kennziffern","Auswertung","Texte"],"not_rendered":{"charts":0,"images":2,"macros":1,"external_links":0,"defined_names":0,"comments":0,"pivot_tables":0},"unopened":[],"bounds":{"document_bytes":16777216,"sheet_cells":100000,"rows_first":2000,"rows_last":500,"rows_between":2000,"halvings":0,"cell_chars":16384,"cell_head_chars":4096},"cells_cut":0,"cells_raw":0,"read":"whole","date_system":"1900"}

{"sheet":"Bilanz","index":0,"n_rows":22,"n_cols":7,"rows_kept":22,"cut":false,"hidden":false,"merged":[[2,2,2,4]]}
[]
[]
[null,"Aktiva","         Bilanz der Tropic GmbH zum 31.12.20..",null,null,null,"Passiva"]
[null,null,"Vorjahr","Berichtsjahr",null,"Vorjahr","Berichtsjahr"]
[null,"Anlagevermögen",null,null,"Eigenkapital"]
[null,"Grundstücke",1900000,1900000,"gez. Kapital",2000000,2000000]
[null,"Gebäude",1100000,1500000,"Rücklagen",800000,1300000]
[null,"Maschinen",800000,1100000]
[null,"Fuhrpark",200000,320000,"Fremdkapital"]
[null,"Betriebs- und Geschäftsausst.",50000,70000,"langfristige Bankverbindlichkeiten",1300000,1700000]
[null,null,null,null,"Verbindlichkeiten aLuL",440000,594000]
[null,"Umlaufververmögen",null,null,"Umsatzsteuer",180000,308000]
[null,"Rohstoffe",120000,140000,"Passive Rechnungsabgrenzung",7000,12000]
[null,"Hilfsstoffe",80000,70000]
[null,"Betriebsstoffe",50000,40000]
[null,"Unfertige Erzeugnisse",20000,120000]
[null,"Fertige Erzeugnisse",10000,90000]
[null,"Forderungen aLuL",360000,480000]
[null,"Bank",30000,70000]
[null,"Kasse",5000,10000]
[null,"Aktive Rechnungsabgrenzung",2000,4000]
[null,null,{"$f":"SUM(C5:C21)","v":4727000},{"$f":"SUM(D5:D21)","v":5914000},null,{"$f":"SUM(F5:F21)","v":4727000},{"$f":"SUM(G5:G21)","v":5914000}]

{"sheet":"Kennziffern","index":1,"n_rows":23,"n_cols":11,"rows_kept":23,"cut":false,"hidden":false,"merged":[[3,9,3,10],[2,2,2,8],[12,2,12,7],[3,2,3,3],[3,4,3,5],[3,7,3,8]]}
[]
[]
[null,null,"Aufbereitete Bilanz der Tropic GmbH zum 31.12.20.."]
[null,null,"Vorjahr",null,"Berichtsjahr",null,null,"Vorjahr",null,"Berichtsjahr"]
[null,"Aktiva","€","%","€","%","Passiva","€","%","€","%"]
[null,"Anlagevermögen",{"$f":"SUM(Bilanz!C6:C10)","v":4050000},{"$f":"C6/$C$11","v":0.85678019885762635},{"$f":"SUM(Bilanz!D6:D10)","v":4890000},{"$f":"E6/$E$11","v":0.82685153872167738},"Eigenkapital",{"$f":"SUM(Bilanz!F6:F7)","v":2800000},{"$f":"H6/$H$11","v":0.59234186587687754},{"$f":"SUM(Bilanz!G6:G7)","v":3300000},{"$f":"J6/$J$11","v":0.55799797091646941}]
[null,"Vorräte",{"$f":"SUM(Bilanz!C13:C17)","v":280000},5.9234186587687754E-2,{"$f":"SUM(Bilanz!D13:D17)","v":460000},7.7781535339871491E-2,"langfr. Fremdkapital",{"$f":"Bilanz!F10","v":1300000},{"$f":"H7/$H$11","v":0.27501586629997882},{"$f":"Bilanz!G10","v":1700000},{"$f":"J7/$J$11","v":0.28745350016909027}]
[null,"Forderungen",{"$f":"Bilanz!C18+Bilanz!C21","v":362000},7.6581341231224884E-2,{"$f":"Bilanz!D18+Bilanz!D21","v":484000},8.1839702401082182E-2,"kurzfr. Fremdkapital",{"$f":"SUM(Bilanz!F11:F13)","v":627000},{"$f":"H8/$H$11","v":0.13264226782314364},{"$f":"SUM(Bilanz!G11:G13)","v":914000},{"$f":"J8/$J$11","v":0.15454852891444032}]
[null,"liquide Mittel",{"$f":"SUM(Bilanz!C19:C20)","v":35000},7.4042733234609692E-3,{"$f":"SUM(Bilanz!D19:D20)","v":80000},1.3527223537368955E-2,"Fremdkapital",{"$f":"H7+H8","v":1927000},{"$f":"H9/$H$11","v":0.40765813412312246},{"$f":"J7+J8","v":2614000},{"$f":"J9/$J$11","v":0.44200202908353059}]
[null,"Umlaufvermögen",{"$f":"SUM(C7:C9)","v":677000},0.14321980114237359,{"$f":"SUM(E7:E9)","v":1024000},0.17314846127832262]
[null,null,{"$f":"C6+C10","v":4727000},1,{"$f":"E6+E10","v":5914000},1,null,{"$f":"H6+H9","v":4727000},{"$f":"H11/$H$11","v":1},{"$f":"J6+J9","v":5914000},{"$f":"J11/$J$11","v":1}]
[]
[null,null,"Bilanzkennziffern"]
[null,null,null,"Vorjahr","Veränderung","Berichtsjahr",null,null,"Vorjahr","Veränderung","Berichtsjahr"]
[null,"Konstitution",null,null,null,null,"Finanzierung"]
[null,"Anlageintensität",null,{"$f":"D6","v":0.85678019885762635},{"$f":"F16-D16","v":-2.992866013594897E-2},{"$f":"F6","v":0.82685153872167738},"Grad der finanziallen Unabhängigkeit",null,{"$f":"I6","v":0.59234186587687754},{"$f":"K16-I16","v":-3.4343894960408128E-2},{"$f":"K6","v":0.55799797091646941}]
[null,"Anteil des Umlaufvermögens",null,{"$f":"D10","v":0.14321980114237359},{"$f":"F17-D17","v":2.9928660135949026E-2},{"$f":"F10","v":0.17314846127832262},"Grad der Verschuldung",null,{"$f":"I9","v":0.40765813412312246},{"$f":"K17-I17","v":3.4343894960408128E-2},{"$f":"K9","v":0.44200202908353059}]
[null,"Vorratsquote",null,{"$f":"D7","v":5.9234186587687754E-2},{"$f":"F18-D18","v":1.8547348752183737E-2},{"$f":"F7","v":7.7781535339871491E-2},"Anteil des langfristigen Fremdkapitals",null,{"$f":"I7","v":0.27501586629997882},1.2437633869111453E-2,{"$f":"K7","v":0.28745350016909027}]
[null,"Quote der Forderungen",null,{"$f":"D8","v":7.6581341231224884E-2},{"$f":"F19-D19","v":5.258361169857298E-3},{"$f":"F8","v":8.1839702401082182E-2},"Anteil des kurzfristigen Fremdkapitals",null,{"$f":"I8","v":0.13264226782314364},2.1906261091296675E-2,{"$f":"K8","v":0.15454852891444032}]
[null,"Anteil der flüssigen Mittel",null,{"$f":"D9","v":7.4042733234609692E-3},{"$f":"F20-D20","v":6.1229502139079853E-3},{"$f":"F9","v":1.3527223537368955E-2},"Liquidität"]
[null,"Investierung",null,null,null,null,"Liquidität 1. Grades",null,{"$f":"C9/H8","v":5.5821371610845293E-2},3.1705980686747702E-2,{"$f":"E9/J8","v":8.7527352297592995E-2}]
[null,"Deckungsgrad I",null,{"$f":"H6/C6","v":0.69135802469135799},{"$f":"F22-D22","v":-1.6511398924486831E-2},{"$f":"J6/E6","v":0.67484662576687116},"Liquidität 2. Grades",null,{"$f":"(C9+C8)/H8","v":0.6331738437001595},-1.6106010002128857E-2,{"$f":"(E9+E8)/J8","v":0.61706783369803064}]
[null,"Deckungsgrad II",null,{"$f":"(H6+H7)/C6","v":1.0123456790123457},{"$f":"F23-D23","v":1.0149208513216657E-2},{"$f":"(J6+J7)/E6","v":1.0224948875255624},"Liquidität 3. Grades",null,{"$f":"(C9+C8+C7)/H8","v":1.0797448165869219},4.0605292822268435E-2,{"$f":"(E9+E8+E7)/J8","v":1.1203501094091903}]

{"sheet":"Auswertung","index":2,"n_rows":53,"n_cols":10,"rows_kept":53,"cut":false,"hidden":false,"merged":[[42,8,43,9],[46,1,46,9],[47,8,47,9],[50,8,51,9],[52,5,52,9],[18,8,18,9],[21,8,22,9],[24,1,24,9],[25,8,25,9],[28,8,29,9],[11,8,11,9],[14,8,15,9],[1,1,1,9],[10,1,10,9],[17,1,17,9],[5,1,5,2],[7,1,7,2],[3,1,4,3],[6,1,6,3],[31,1,31,9],[32,8,32,9],[35,8,36,9],[38,1,38,9],[39,8,39,9]]}
[]
[null,"Auswertung"]
[]
[null,"Abweichungstoleranz in die gelben Felder eintragen."]
[]
[null,"niedriger Abweichungswert",null,-0.01]
[null,"Differenz = Abweichungstoleranz"]
[null,"hoher Abweichungswert",null,0.01]
[]
[]
[null,"Konstitution"]
[null,null,"Vorjahr","Berichtsjahr","Veränderung",null,null,null,"Tolereranzbereich in %"]
[null,"Anlageintensität",{"$f":"Kennziffern!D16","v":0.85678019885762635},{"$f":"Kennziffern!F16","v":0.82685153872167738},{"$f":"Kennziffern!E16","v":-2.992866013594897E-2},null,null,null,"niedriger Wert","hoher Wert"]
[null,"Umlaufvermögen",{"$f":"Kennziffern!D17","v":0.14321980114237359},{"$f":"Kennziffern!F17","v":0.17314846127832262},{"$f":"Kennziffern!E17","v":2.9928660135949026E-2},null,null,null,-1,1]
[null,{"$f":"IF(E13<D6,Texte!A4,IF(E13>D8,Texte!A5,Texte!A6))","v":"Verminderte Belastung mit fixen Kosten."},null,null,null,null,null,null,{"$f":"IF(I14>J14,\"Toleranzbereich ungültig!\",\"\")","v":""}]
[null,{"$f":"IF(E13<D6,Texte!A8,IF(Auswertung!E13>D8,Texte!A7,Texte!A9))","v":"Erhöhte Anpassungsfähigkeit an die Auftragslage."}]
[]
[null,"Investierung (Deckungsgrad I)"]
[null,null,"Vorjahr","Berichtsjahr","Veränderung",null,null,null,"Tolereranzbereich in %"]
[null,"Deckungsgrad I",{"$f":"Kennziffern!D22","v":0.69135802469135799},{"$f":"Kennziffern!F22","v":0.67484662576687116},{"$f":"Kennziffern!E22","v":-1.6511398924486831E-2},null,null,null,"niedriger Wert","hoher Wert"]
[null,{"$f":"IF(Auswertung!E20<Auswertung!D6,Texte!A12,IF(Auswertung!E20>Auswertung!D8,Texte!A13,Texte!A14))","v":"Verminderung des Deckungsgrades I"},null,null,null,null,null,null,-1,1]
[null,"(Deckung des Anlagevermögens mit Eigenkapital)",null,null,null,null,null,null,{"$f":"IF(I21>J21,\"Toleranzbereich ungültig!\",\"\")","v":""}]
[]
[]
[null,"Investierung (Deckungsgrad II)"]
[null,null,"Vorjahr","Berichtsjahr","Veränderung",null,null,null,"Tolereranzbereich in %"]
[null,"Deckungsgrad II",{"$f":"Kennziffern!D23","v":1.0123456790123457},{"$f":"Kennziffern!F23","v":1.0224948875255624},{"$f":"Kennziffern!E23","v":1.0149208513216657E-2},null,null,null,"niedriger Wert","hoher Wert"]
[null,{"$f":"IF(Auswertung!E27<Auswertung!D6,Texte!A17,IF(Auswertung!E27>Auswertung!D8,Texte!A18,Texte!A19))","v":"Verbesserung des Deckungsgrades II"},null,null,null,null,null,null,-1,1]
[null,{"$f":"IF(D27>100%,Texte!A20,Texte!A21)","v":"Die Goldene Bilanzregel wird eingehalten."},null,null,null,null,null,null,{"$f":"IF(I28>J28,\"Toleranzbereich ungültig!\",\"\")","v":""}]
[null,"(Deckung des Anlagevermögens mit Eigenkapital und langfristigem Fremdkapital)"]
[]
[null,"Finanzierung"]
[null,null,"Vorjahr","Berichtsjahr","Veränderung",null,null,null,"Tolereranzbereich in %"]
[null,"Eigenkapital",{"$f":"Kennziffern!I16","v":0.59234186587687754},{"$f":"Kennziffern!K16","v":0.55799797091646941},{"$f":"Kennziffern!J16","v":-3.4343894960408128E-2},null,null,null,"niedriger Wert","hoher Wert"]
[null,"Verschuldung",{"$f":"Kennziffern!I17","v":0.40765813412312246},{"$f":"Kennziffern!K17","v":0.44200202908353059},{"$f":"Kennziffern!J17","v":3.4343894960408128E-2},null,null,null,-1,1]
[null,{"$f":"IF(Auswertung!E34<Auswertung!D6,Texte!A24,IF(Auswertung!E34>Auswertung!D8,Texte!A25,Texte!A26))","v":"Verminderung des Eigenkapitalanteils"},null,null,null,null,null,null,{"$f":"IF(I35>J35,\"Toleranzbereich ungültig!\",\"\")","v":""}]
[null,{"$f":"IF(Auswertung!E35>Auswertung!D8,Texte!A28,IF(Auswertung!E35<Auswertung!D6,Texte!A27,Texte!A29))","v":"Erhöhung der finanziellen Abhängigkeit"}]
[]
[null,"Fremdkapitalanteile"]
[null,null,"Vorjahr","Berichtsjahr","Veränderung",null,null,null,"Tolereranzbereich in %"]
[null,"langfristiges Fremdkapital",{"$f":"Kennziffern!I18","v":0.27501586629997882},{"$f":"Kennziffern!K18","v":0.28745350016909027},{"$f":"Kennziffern!J18","v":1.2437633869111453E-2},null,null,null,"niedriger Wert","hoher Wert"]
[null,"kurzfristiges Fremdkapital",{"$f":"Kennziffern!I19","v":0.13264226782314364},{"$f":"Kennziffern!K19","v":0.15454852891444032},{"$f":"Kennziffern!J19","v":2.1906261091296675E-2},null,null,null,-1,1]
[null,{"$f":"IF(Auswertung!E41>Auswertung!D8,Texte!A32,IF(Auswertung!E41<Auswertung!D6,Texte!A33,Texte!A34))","v":"Erhöhung der langfristigen Schulden"},null,null,null,null,null,null,{"$f":"IF(I42>J42,\"Toleranzbereich ungültig!\",\"\")","v":""}]
[null,{"$f":"IF(Auswertung!E42>Auswertung!D8,Texte!A35,IF(Auswertung!E42<Auswertung!D6,Texte!A36,Texte!A37))","v":"Erhöhung der kurzfristigen Schulden"}]
[null,{"$f":"IF(Auswertung!E42>Auswertung!D8,Texte!A38,IF(Auswertung!E42<Auswertung!D6,Texte!A39,Texte!A40))","v":"Negative Auswirkung auf die Liquidität"}]
[]
[null,"Liquidität"]
[null,null,"Vorjahr","Berichtsjahr","Veränderung",null,null,null,"Tolereranzbereich in %"]
[null,"1. Grades",{"$f":"Kennziffern!I21","v":5.5821371610845293E-2},{"$f":"Kennziffern!K21","v":8.7527352297592995E-2},{"$f":"Kennziffern!J21","v":3.1705980686747702E-2},null,null,null,"niedriger Wert","hoher Wert"]
[null,"2. Grades",{"$f":"Kennziffern!I22","v":0.6331738437001595},{"$f":"Kennziffern!K22","v":0.61706783369803064},{"$f":"Kennziffern!J22","v":-1.6106010002128857E-2},null,null,null,95,105]
[null,"3. Grades",{"$f":"Kennziffern!I23","v":1.0797448165869219},{"$f":"Kennziffern!K23","v":1.1203501094091903},{"$f":"Kennziffern!J23","v":4.0605292822268435E-2},null,null,null,{"$f":"IF(I50>J50,\"Toleranzbereich ungültig!\",\"\")","v":""}]
[null,{"$f":"IF(Auswertung!D50<100%,Texte!A43,Texte!A44)","v":"Unterdeckung bei der einzugsbedingten Liquidität (<100%)"}]
[null,{"$f":"IF(Auswertung!E50<Auswertung!D6,Texte!A45,IF(Auswertung!E50>Auswertung!D8,Texte!A46,Texte!A47))","v":"Liquiditätsverschlechterung"},null,null,null,"Toleranzbereich bezieht sich auf D50"]

{"sheet":"Texte","index":3,"n_rows":47,"n_cols":1,"rows_kept":47,"cut":false,"hidden":false,"merged":[]}
["Texte"]
[]
["Anlagenintensität"]
["Verminderte Belastung mit fixen Kosten."]
["Erhöhte Belastung mit fixen Kosten."]
["Geringe Veränderung bei der Belastung mit fixen Kosten."]
["Verminderte Anpassungsfähigkeit an die Auftragslage."]
["Erhöhte Anpassungsfähigkeit an die Auftragslage."]
["Unveränderte Anpassungsfähigkeit an die Auftragslage."]
[]
["Deckungsgrad I"]
["Verminderung des Deckungsgrades I"]
["Verbesserung des Deckungsgrades I"]
["Geringe Veränderung des Deckungsgrades I "]
[]
["Deckungsgrad II"]
["Verminderung des Deckungsgrades II"]
["Verbesserung des Deckungsgrades II"]
["Geringe Veränderung des Deckungsgrades II "]
["Die Goldene Bilanzregel wird eingehalten."]
["Die Goldene Bilanzregel wird nicht eingehalten."]
[]
["Finanzierung"]
["Verminderung des Eigenkapitalanteils"]
["Erhöhung des Eigenkapitalanteils"]
["Geringfügige Änderung des Eigenkapitalanteils"]
["Verminderung der finanziellen Abhängigkeit"]
["Erhöhung der finanziellen Abhängigkeit"]
["Geringfügige Änderung der Verschuldung"]
[]
["Fremdkapitalanteile"]
["Erhöhung der langfristigen Schulden"]
["Verminderung der langfristigen Schulden"]
["Geringe Änderung der langfristigen Schulden"]
["Erhöhung der kurzfristigen Schulden"]
["Verminderung der kurzfristigen Schulden"]
["Geringe Änderung der kurzfristigen Schulden"]
["Negative Auswirkung auf die Liquidität"]
["Positive Auswirkung auf die Liquidität"]
["Auswirkung auf die Liquidität ist unverändert"]
[]
["Liqudität"]
["Unterdeckung bei der einzugsbedingten Liquidität (<100%)"]
["Überdeckung bei der einzugsbedingten Liquidität (>100%)"]
["Liquiditätsverschlechterung"]
["Liquiditätsverbesserung"]
["Unwesenltiche Liquiditätsveränderung"]